[Event "Late-Titled-Tuesday-Blitz-January-16-2024"]
[Site "Chess.com"]
[Date "2024.01.16"]
[Round "4"]
[White "jmpion"]
[Black "diamonds13"]
[Result "1-0"]
[WhiteElo "2527"]
[BlackElo "2340"]
[TimeControl "180+1"]
[EndTime "14:37:50 PST"]
[Termination "jmpion won by resignation"]

1. e4 {[%clk 0:03:00.9]} 1... c5 {[%clk 0:02:59.4]} 2. Nf3 {[%clk 0:03:00.9]}
2... e6 {[%clk 0:02:59.3]} 3. d4 {[%clk 0:03:01.1]} 3... cxd4 {[%clk 0:02:59.6]}
4. Nxd4 {[%clk 0:03:01.8]} 4... Nf6 {[%clk 0:02:59.7]} 5. Nc3 {[%clk 0:03:01.9]}
5... Nc6 {[%clk 0:02:59.6]} 6. Nxc6 {[%clk 0:03:02.1]} 6... bxc6 {[%clk
0:02:59.2]} 7. e5 {[%clk 0:03:02.6]} 7... Nd5 {[%clk 0:02:59.1]} 8. Ne4 {[%clk
0:03:03.2]} 8... f5 {[%clk 0:02:58.9]} 9. exf6 {[%clk 0:02:58.8]} 9... Nxf6
{[%clk 0:02:58.5]} 10. Nd6+ {[%clk 0:02:52.6]} 10... Bxd6 {[%clk 0:02:57.3]} 11.
Qxd6 {[%clk 0:02:53.5]} 11... Qe7 {[%clk 0:02:57.6]} 12. Bf4 {[%clk 0:02:51.6]}
12... Qxd6 {[%clk 0:02:56.9]} 13. Bxd6 {[%clk 0:02:52.5]} 13... Ne4 {[%clk
0:02:56.7]} 14. Ba3 {[%clk 0:02:45.4]} 14... d5 {[%clk 0:02:50.8]} 15. Bd3
{[%clk 0:02:38.6]} 15... Nf6 {[%clk 0:02:41.2]} 16. O-O {[%clk 0:02:27.4]} 16...
e5 {[%clk 0:02:39.3]} 17. Rfe1 {[%clk 0:02:27.6]} 17... e4 {[%clk 0:02:38.6]}
18. f3 {[%clk 0:02:23.9]} 18... Bf5 {[%clk 0:02:39]} 19. g4 {[%clk 0:02:20.5]}
19... Bg6 {[%clk 0:02:37.5]} 20. g5 {[%clk 0:02:19.1]} 20... Kf7 {[%clk
0:02:34.1]} 21. fxe4 {[%clk 0:01:48.8]} 21... Nxe4 {[%clk 0:02:29.7]} 22. Rf1+
{[%clk 0:01:46.7]} 22... Ke6 {[%clk 0:02:29.1]} 23. Rae1 {[%clk 0:01:35.8]}
23... h6 {[%clk 0:02:18.3]} 24. gxh6 {[%clk 0:01:24.2]} 24... Rxh6 {[%clk
0:02:17.3]} 25. c4 {[%clk 0:01:20]} 25... Rah8 {[%clk 0:02:14.7]} 26. Re2 {[%clk
0:01:11.7]} 26... Rh3 {[%clk 0:02:11.1]} 27. cxd5+ {[%clk 0:01:06.9]} 27... cxd5
{[%clk 0:02:09.2]} 28. Bb5 {[%clk 0:01:01.8]} 28... R8h5 {[%clk 0:02:00.6]} 29.
Rg2 {[%clk 0:00:48.4]} 29... Rg5 {[%clk 0:01:55]} 30. Be2 {[%clk 0:00:36.7]}
30... Bh5 {[%clk 0:01:15.2]} 31. Ba6 {[%clk 0:00:31]} 31... Ke5 {[%clk
0:01:02.6]} 32. Bc8 {[%clk 0:00:27.8]} 32... Rd3 {[%clk 0:00:56.1]} 33. Rxg5+
{[%clk 0:00:27]} 33... Nxg5 {[%clk 0:00:55.9]} 34. Rf5+ {[%clk 0:00:27.5]} 34...
Kd4 {[%clk 0:00:53.1]} 35. Rxg5 {[%clk 0:00:24.9]} 35... Bf3 {[%clk 0:00:53.6]}
36. Kf2 {[%clk 0:00:21.4]} 36... Be4 {[%clk 0:00:53.4]} 37. Bb4 {[%clk
0:00:16.5]} 37... Rf3+ {[%clk 0:00:52.9]} 38. Ke2 {[%clk 0:00:16.3]} 38... Re3+
{[%clk 0:00:52.1]} 39. Kf2 {[%clk 0:00:15.1]} 39... Rf3+ {[%clk 0:00:50.5]} 40.
Kg1 {[%clk 0:00:15.7]} 40... Ke3 {[%clk 0:00:49.3]} 41. Bc5+ {[%clk 0:00:14.8]}
41... d4 {[%clk 0:00:49]} 42. Rg3 {[%clk 0:00:15.1]} 42... Rxg3+ {[%clk
0:00:45.4]} 43. hxg3 {[%clk 0:00:16]} 43... Kf3 {[%clk 0:00:45.7]} 44. Bxd4
{[%clk 0:00:15.9]} 44... g5 {[%clk 0:00:45.4]} 45. g4 {[%clk 0:00:15.1]} 45...
Kf4 {[%clk 0:00:45.1]} 46. Bxa7 {[%clk 0:00:15.3]} 46... Bf3 {[%clk 0:00:45.4]}
47. Bb8+ {[%clk 0:00:14.1]} 47... Ke4 {[%clk 0:00:44.6]} 48. Kf2 {[%clk
0:00:15]} 48... Bd1 {[%clk 0:00:43.7]} 49. Bf5+ {[%clk 0:00:14.6]} 49... Kd4
{[%clk 0:00:43.2]} 50. Ba7+ {[%clk 0:00:14.7]} 50... Kc4 {[%clk 0:00:43.9]} 51.
Be3 {[%clk 0:00:15.6]} 51... Kd5 {[%clk 0:00:43.8]} 52. Bxg5 {[%clk 0:00:15.7]}
52... Ba4 {[%clk 0:00:43.5]} 53. b3 {[%clk 0:00:15.7]} 53... Bb5 {[%clk
0:00:44.1]} 54. Be3 {[%clk 0:00:16]} 54... Be8 {[%clk 0:00:44]} 55. Kf3 {[%clk
0:00:16.3]} 55... Ke5 {[%clk 0:00:44.6]} 56. Bf4+ {[%clk 0:00:16.3]} 1-0

[Event "Late-Titled-Tuesday-Blitz-January-16-2024"]
[Site "Chess.com"]
[Date "2024.01.16"]
[Round "4"]
[White "thesupera12"]
[Black "Ekko_li"]
[Result "0-1"]
[WhiteElo "2536"]
[BlackElo "2706"]
[TimeControl "180+1"]
[EndTime "14:37:52 PST"]
[Termination "Ekko_li won by resignation"]

1. d4 {[%clk 0:02:55.4]} 1... Nf6 {[%clk 0:02:58.2]} 2. Bg5 {[%clk 0:02:45]}
2... d5 {[%clk 0:02:56.6]} 3. Bxf6 {[%clk 0:02:45.1]} 3... gxf6 {[%clk
0:02:56.7]} 4. e3 {[%clk 0:02:46]} 4... c5 {[%clk 0:02:55.9]} 5. c4 {[%clk
0:02:46.3]} 5... cxd4 {[%clk 0:02:50.7]} 6. Qxd4 {[%clk 0:02:45.8]} 6... e5
{[%clk 0:02:44.2]} 7. Qxd5 {[%clk 0:02:45.1]} 7... Qb6 {[%clk 0:02:43.4]} 8.
Qb5+ {[%clk 0:02:42.7]} 8... Qxb5 {[%clk 0:02:43.7]} 9. cxb5 {[%clk 0:02:43.6]}
9... Be6 {[%clk 0:02:41]} 10. Nc3 {[%clk 0:02:42.9]} 10... Nd7 {[%clk
0:02:39.7]} 11. O-O-O {[%clk 0:02:33.4]} 11... Bb4 {[%clk 0:02:38.4]} 12. Nge2
{[%clk 0:02:31]} 12... Rc8 {[%clk 0:02:26.8]} 13. a3 {[%clk 0:02:30.8]} 13...
Ba5 {[%clk 0:02:21.7]} 14. b4 {[%clk 0:02:30.6]} 14... Bb6 {[%clk 0:02:20.6]}
15. Kb2 {[%clk 0:02:30.8]} 15... f5 {[%clk 0:02:19.4]} 16. Nc1 {[%clk
0:02:20.6]} 16... e4 {[%clk 0:02:10.6]} 17. Nb3 {[%clk 0:02:17.1]} 17... Ne5
{[%clk 0:02:10.6]} 18. Nd4 {[%clk 0:02:15.1]} 18... Ng4 {[%clk 0:02:00.7]} 19.
Rd2 {[%clk 0:02:00.8]} 19... Rd8 {[%clk 0:01:57.4]} 20. h3 {[%clk 0:01:57.3]}
20... Ne5 {[%clk 0:01:55.2]} 21. Be2 {[%clk 0:01:54.5]} 21... Bc4 {[%clk
0:01:51.1]} 22. Rhd1 {[%clk 0:01:49.3]} 22... Bd3 {[%clk 0:01:45.7]} 23. Bxd3
{[%clk 0:01:31.4]} 23... exd3 {[%clk 0:01:44]} 24. Kb3 {[%clk 0:01:05]} 24...
Bxd4 {[%clk 0:01:42.5]} 25. exd4 {[%clk 0:01:05.9]} 25... Rxd4 {[%clk
0:01:39.9]} 26. Re1 {[%clk 0:01:06.1]} 26... f6 {[%clk 0:01:40.1]} 27. f4 {[%clk
0:01:02.1]} 27... Rxf4 {[%clk 0:01:39.6]} 28. Nd5 {[%clk 0:00:56.2]} 28... Rd4
{[%clk 0:01:35]} 29. Nxf6+ {[%clk 0:00:56.3]} 29... Kf7 {[%clk 0:01:35.1]} 30.
Nxh7 {[%clk 0:00:48.3]} 30... Nc4 {[%clk 0:01:27.2]} 31. Ng5+ {[%clk 0:00:42.1]}
31... Kf6 {[%clk 0:01:17.9]} 32. Kc3 {[%clk 0:00:34.2]} 32... Nxd2 {[%clk
0:01:13.2]} 33. Kxd4 {[%clk 0:00:34.6]} 33... Kxg5 {[%clk 0:01:13.8]} 34. Kxd3
{[%clk 0:00:35.1]} 34... Ne4 {[%clk 0:01:13.1]} 35. Rc1 {[%clk 0:00:30.9]} 35...
Rd8+ {[%clk 0:01:11]} 36. Ke3 {[%clk 0:00:30.6]} 36... Ng3 {[%clk 0:01:01.2]}
37. Rc7 {[%clk 0:00:29.8]} 37... Re8+ {[%clk 0:01:01.5]} 38. Kf2 {[%clk
0:00:28.4]} 38... Kf4 {[%clk 0:01:00.9]} 39. Rc2 {[%clk 0:00:14]} 39... Ne4+
{[%clk 0:00:58.2]} 40. Kg1 {[%clk 0:00:12.7]} 40... Kg3 {[%clk 0:00:56.8]} 41.
Re2 {[%clk 0:00:11.9]} 41... f4 {[%clk 0:00:55.7]} 42. a4 {[%clk 0:00:12.1]}
42... Rc8 {[%clk 0:00:53.3]} 43. Re1 {[%clk 0:00:08.2]} 43... Rc4 {[%clk
0:00:52.9]} 44. Kf1 {[%clk 0:00:06.1]} 44... Rxb4 {[%clk 0:00:52.2]} 45. a5
{[%clk 0:00:06.4]} 45... Nc3 {[%clk 0:00:47.3]} 46. b6 {[%clk 0:00:05.7]} 46...
axb6 {[%clk 0:00:46.8]} 47. axb6 {[%clk 0:00:06.3]} 47... Rxb6 {[%clk
0:00:47.4]} 48. Rc1 {[%clk 0:00:06.2]} 48... Rb1 {[%clk 0:00:43.8]} 49. Rxb1
{[%clk 0:00:06.7]} 49... Nxb1 {[%clk 0:00:44.7]} 0-1

[Event "Late-Titled-Tuesday-Blitz-January-16-2024"]
[Site "Chess.com"]
[Date "2024.01.16"]
[Round "4"]
[White "mr_gustavo"]
[Black "RCone"]
[Result "1-0"]
[WhiteElo "2739"]
[BlackElo "2423"]
[TimeControl "180+1"]
[EndTime "14:37:55 PST"]
[Termination "mr_gustavo won on time"]

1. d4 {[%clk 0:02:42.8]} 1... g6 {[%clk 0:02:59.2]} 2. Bf4 {[%clk 0:02:42.4]}
2... d6 {[%clk 0:02:59.3]} 3. Nf3 {[%clk 0:02:42.8]} 3... Bg7 {[%clk 0:02:57.8]}
4. e3 {[%clk 0:02:29.6]} 4... Nf6 {[%clk 0:02:57.7]} 5. h3 {[%clk 0:02:25.2]}
5... O-O {[%clk 0:02:57.7]} 6. Be2 {[%clk 0:02:24.9]} 6... Nfd7 {[%clk
0:02:49.2]} 7. O-O {[%clk 0:02:24.8]} 7... e5 {[%clk 0:02:48.6]} 8. Bh2 {[%clk
0:02:24.8]} 8... Nc6 {[%clk 0:02:48.3]} 9. c4 {[%clk 0:02:24.5]} 9... f5 {[%clk
0:02:47.3]} 10. Nc3 {[%clk 0:02:24.4]} 10... e4 {[%clk 0:02:40.1]} 11. Nd2
{[%clk 0:02:22.9]} 11... Nf6 {[%clk 0:02:33.6]} 12. f3 {[%clk 0:02:19.5]} 12...
exf3 {[%clk 0:02:32]} 13. Bxf3 {[%clk 0:02:20.4]} 13... g5 {[%clk 0:02:09.2]}
14. Nd5 {[%clk 0:02:19.2]} 14... Ne7 {[%clk 0:01:52.8]} 15. Nxf6+ {[%clk
0:02:18.5]} 15... Bxf6 {[%clk 0:01:52.7]} 16. Nb1 {[%clk 0:02:15.2]} 16... Ng6
{[%clk 0:01:48]} 17. Nc3 {[%clk 0:02:15.3]} 17... Nh4 {[%clk 0:01:42.9]} 18. Qb3
{[%clk 0:02:03.3]} 18... Nxf3+ {[%clk 0:01:36.2]} 19. Rxf3 {[%clk 0:02:04.2]}
19... Kh8 {[%clk 0:01:19.4]} 20. Raf1 {[%clk 0:02:03.5]} 20... Bg7 {[%clk
0:01:16.9]} 21. Kh1 {[%clk 0:02:03.3]} 21... Be6 {[%clk 0:01:02.7]} 22. e4
{[%clk 0:01:56.4]} 22... f4 {[%clk 0:00:52]} 23. Qxb7 {[%clk 0:01:35.5]} 23...
Bxc4 {[%clk 0:00:45.2]} 24. Rd1 {[%clk 0:01:34.5]} 24... Rb8 {[%clk 0:00:42.8]}
25. Qc6 {[%clk 0:01:31.1]} 25... Be6 {[%clk 0:00:35.4]} 26. b3 {[%clk
0:01:28.5]} 26... g4 {[%clk 0:00:19.5]} 27. Rxf4 {[%clk 0:01:17.7]} 27... Rxf4
{[%clk 0:00:18.4]} 28. Bxf4 {[%clk 0:01:18.6]} 28... gxh3 {[%clk 0:00:19]} 29.
g3 {[%clk 0:01:10.4]} 29... Bg4 {[%clk 0:00:18.5]} 30. Rd2 {[%clk 0:01:10.2]}
30... Bf3+ {[%clk 0:00:18.1]} 31. Kh2 {[%clk 0:01:09.7]} 31... Bg2 {[%clk
0:00:18.7]} 32. Qd5 {[%clk 0:01:02.7]} 32... Qf8 {[%clk 0:00:17.2]} 33. Qh5
{[%clk 0:00:56.4]} 33... Re8 {[%clk 0:00:14.9]} 34. e5 {[%clk 0:00:55.4]} 34...
dxe5 {[%clk 0:00:14.2]} 35. dxe5 {[%clk 0:00:56.3]} 35... c6 {[%clk 0:00:07.1]}
36. Rd7 {[%clk 0:00:48.3]} 36... Rd8 {[%clk 0:00:06.1]} 37. Qd1 {[%clk
0:00:43.4]} 37... Rxd7 {[%clk 0:00:05.9]} 38. Qxd7 {[%clk 0:00:44.3]} 38... h6
{[%clk 0:00:05.8]} 39. e6 {[%clk 0:00:41.6]} 39... Bf6 {[%clk 0:00:05.4]} 40.
Nd1 {[%clk 0:00:29.7]} 40... Qe7 {[%clk 0:00:05.7]} 41. Ne3 {[%clk 0:00:24.3]}
41... Kg7 {[%clk 0:00:05.3]} 42. Nf5+ {[%clk 0:00:23.2]} 42... Kg6 {[%clk
0:00:05.5]} 43. Nxe7+ {[%clk 0:00:24.1]} 43... Bxe7 {[%clk 0:00:05.8]} 44. Qxe7
{[%clk 0:00:24.1]} 1-0

[Event "Late-Titled-Tuesday-Blitz-January-16-2024"]
[Site "Chess.com"]
[Date "2024.01.16"]
[Round "4"]
[White "RobertoJBM"]
[Black "nindjaxx8"]
[Result "1-0"]
[WhiteElo "2798"]
[BlackElo "2573"]
[TimeControl "180+1"]
[EndTime "14:37:56 PST"]
[Termination "RobertoJBM won by checkmate"]

1. e4 {[%clk 0:03:00.9]} 1... e6 {[%clk 0:02:59.5]} 2. d4 {[%clk 0:02:59.7]}
2... d5 {[%clk 0:02:59.2]} 3. Nc3 {[%clk 0:02:59.1]} 3... Bb4 {[%clk 0:02:56.8]}
4. e5 {[%clk 0:02:56.3]} 4... c5 {[%clk 0:02:56.4]} 5. Bd2 {[%clk 0:02:56.2]}
5... a6 {[%clk 0:02:45.1]} 6. Nce2 {[%clk 0:02:50.6]} 6... Bxd2+ {[%clk
0:02:44.5]} 7. Qxd2 {[%clk 0:02:51.5]} 7... Nc6 {[%clk 0:02:44.4]} 8. f4 {[%clk
0:02:50]} 8... Qb6 {[%clk 0:02:37.5]} 9. c3 {[%clk 0:02:44.6]} 9... Nge7 {[%clk
0:02:32.6]} 10. Nf3 {[%clk 0:02:42]} 10... cxd4 {[%clk 0:02:27.8]} 11. Nexd4
{[%clk 0:02:41.7]} 11... O-O {[%clk 0:02:27]} 12. Bd3 {[%clk 0:02:39.5]} 12...
Ng6 {[%clk 0:02:21.5]} 13. O-O {[%clk 0:02:35.7]} 13... Bd7 {[%clk 0:02:13.5]}
14. Kh1 {[%clk 0:02:35.1]} 14... Rac8 {[%clk 0:02:10.8]} 15. Rae1 {[%clk
0:02:31.8]} 15... Na5 {[%clk 0:02:10.5]} 16. h4 {[%clk 0:02:23.4]} 16... Nc4
{[%clk 0:02:03.3]} 17. Bxc4 {[%clk 0:02:20.9]} 17... Rxc4 {[%clk 0:02:04.2]} 18.
h5 {[%clk 0:02:19.6]} 18... Ne7 {[%clk 0:02:02.8]} 19. h6 {[%clk 0:02:11.4]}
19... gxh6 {[%clk 0:01:40.7]} 20. Kh2 {[%clk 0:02:08.2]} 20... Kh8 {[%clk
0:01:39.6]} 21. g4 {[%clk 0:01:45.8]} 21... Rg8 {[%clk 0:01:24.1]} 22. Rg1
{[%clk 0:01:42.7]} 22... Rcc8 {[%clk 0:01:17.6]} 23. Rg3 {[%clk 0:01:42.1]}
23... Rg7 {[%clk 0:01:13]} 24. Reg1 {[%clk 0:01:41.9]} 24... Rcg8 {[%clk
0:01:12.9]} 25. Kh3 {[%clk 0:01:37.5]} 25... a5 {[%clk 0:01:08.5]} 26. R1g2
{[%clk 0:01:35.7]} 26... Bb5 {[%clk 0:00:56.4]} 27. Kh2 {[%clk 0:01:29.1]} 27...
Bd7 {[%clk 0:00:52.2]} 28. Ng1 {[%clk 0:01:20.5]} 28... Ng6 {[%clk 0:00:39.1]}
29. Kh3 {[%clk 0:01:12.9]} 29... Qd8 {[%clk 0:00:33.1]} 30. Ngf3 {[%clk
0:01:11]} 30... b6 {[%clk 0:00:28.6]} 31. a3 {[%clk 0:01:09.9]} 31... Bc8 {[%clk
0:00:28.4]} 32. Qe3 {[%clk 0:01:07.1]} 32... Ba6 {[%clk 0:00:27.9]} 33. Rg1
{[%clk 0:01:07]} 33... Bc8 {[%clk 0:00:24.4]} 34. R1g2 {[%clk 0:01:06.3]} 34...
Ba6 {[%clk 0:00:24]} 35. Rf2 {[%clk 0:00:52.9]} 35... Bc8 {[%clk 0:00:19.7]} 36.
Rf1 {[%clk 0:00:46]} 36... Ba6 {[%clk 0:00:18.1]} 37. Rh1 {[%clk 0:00:44.7]}
37... Bc8 {[%clk 0:00:18.2]} 38. b3 {[%clk 0:00:42.1]} 38... f6 {[%clk
0:00:09.9]} 39. Kg2 {[%clk 0:00:29.2]} 39... fxe5 {[%clk 0:00:09.3]} 40. Nxe5
{[%clk 0:00:29.7]} 40... Nxe5 {[%clk 0:00:08]} 41. Qxe5 {[%clk 0:00:30.6]} 41...
Qf8 {[%clk 0:00:04.6]} 42. Rxh6 {[%clk 0:00:27.9]} 42... Qxa3 {[%clk 0:00:03.8]}
43. Rxh7+ {[%clk 0:00:20.5]} 43... Kxh7 {[%clk 0:00:03.6]} 44. Qh5# {[%clk
0:00:20.2]} 1-0

[Event "Late-Titled-Tuesday-Blitz-January-16-2024"]
[Site "Chess.com"]
[Date "2024.01.16"]
[Round "4"]
[White "NoHeThTo"]
[Black "CamillaEffect"]
[Result "0-1"]
[WhiteElo "2704"]
[BlackElo "2560"]
[TimeControl "180+1"]
[EndTime "14:37:58 PST"]
[Termination "CamillaEffect won by checkmate"]

1. d4 {[%clk 0:03:00.9]} 1... d5 {[%clk 0:02:57.1]} 2. Nc3 {[%clk 0:03:01]} 2...
Nf6 {[%clk 0:02:56.4]} 3. Bf4 {[%clk 0:03:01.2]} 3... Bf5 {[%clk 0:02:55.5]} 4.
e3 {[%clk 0:02:59]} 4... c6 {[%clk 0:02:55.5]} 5. f3 {[%clk 0:02:59.4]} 5... h5
{[%clk 0:02:51.1]} 6. Bd3 {[%clk 0:02:56]} 6... Qd7 {[%clk 0:02:43.8]} 7. Nge2
{[%clk 0:02:54.3]} 7... h4 {[%clk 0:02:40.7]} 8. Qd2 {[%clk 0:02:47]} 8... Bxd3
{[%clk 0:02:36.1]} 9. Qxd3 {[%clk 0:02:46.6]} 9... g6 {[%clk 0:02:36.4]} 10. Be5
{[%clk 0:02:46.1]} 10... Bg7 {[%clk 0:02:36.2]} 11. e4 {[%clk 0:02:42.1]} 11...
Nh5 {[%clk 0:02:28.2]} 12. Bxg7 {[%clk 0:02:38.4]} 12... Nxg7 {[%clk 0:02:29.1]}
13. O-O-O {[%clk 0:02:34.1]} 13... Na6 {[%clk 0:02:27.9]} 14. a3 {[%clk
0:02:31.3]} 14... O-O-O {[%clk 0:02:24.4]} 15. Rhe1 {[%clk 0:02:18.7]} 15... Nc7
{[%clk 0:02:20.7]} 16. Na4 {[%clk 0:02:17.4]} 16... dxe4 {[%clk 0:02:03.9]} 17.
fxe4 {[%clk 0:02:05.1]} 17... Qg4 {[%clk 0:02:04]} 18. Rf1 {[%clk 0:01:58.5]}
18... f5 {[%clk 0:01:46.8]} 19. Rf4 {[%clk 0:01:37.5]} 19... Qg5 {[%clk
0:01:27.1]} 20. Kb1 {[%clk 0:01:35.2]} 20... e5 {[%clk 0:01:22.2]} 21. Rff1
{[%clk 0:01:32.6]} 21... exd4 {[%clk 0:01:03.2]} 22. Nc5 {[%clk 0:01:19]} 22...
fxe4 {[%clk 0:00:50]} 23. Nxe4 {[%clk 0:01:19.9]} 23... Qxg2 {[%clk 0:00:34.1]}
24. Rg1 {[%clk 0:01:09.7]} 24... Qxh2 {[%clk 0:00:34.4]} 25. Rxg6 {[%clk
0:01:08.3]} 25... Nge6 {[%clk 0:00:31.5]} 26. Rdg1 {[%clk 0:00:47.7]} 26... Qe5
{[%clk 0:00:26.9]} 27. Ng5 {[%clk 0:00:44.6]} 27... Nxg5 {[%clk 0:00:19.5]} 28.
R6xg5 {[%clk 0:00:44.8]} 28... Qe3 {[%clk 0:00:19.7]} 29. Qf5+ {[%clk
0:00:45.2]} 29... Kb8 {[%clk 0:00:20.2]} 30. Nc1 {[%clk 0:00:45.5]} 30... h3
{[%clk 0:00:18.2]} 31. Rh1 {[%clk 0:00:45.2]} 31... h2 {[%clk 0:00:18.2]} 32.
Rg2 {[%clk 0:00:44.4]} 32... Qe6 {[%clk 0:00:17.1]} 33. Qf4 {[%clk 0:00:43.3]}
33... Kc8 {[%clk 0:00:12]} 34. Rhxh2 {[%clk 0:00:42.3]} 34... Rxh2 {[%clk
0:00:12.4]} 35. Qxh2 {[%clk 0:00:43.2]} 35... Qd6 {[%clk 0:00:10.5]} 36. Qh3+
{[%clk 0:00:42.9]} 36... Qd7 {[%clk 0:00:10.9]} 37. Qh4 {[%clk 0:00:43.3]} 37...
Nd5 {[%clk 0:00:10.8]} 38. Nd3 {[%clk 0:00:42.1]} 38... Ne3 {[%clk 0:00:09.4]}
39. Rg6 {[%clk 0:00:42.1]} 39... Qf7 {[%clk 0:00:08.2]} 40. Qh3+ {[%clk
0:00:36.7]} 40... Kb8 {[%clk 0:00:08]} 41. Rg1 {[%clk 0:00:36.9]} 41... Rf8
{[%clk 0:00:06.8]} 42. Ne5 {[%clk 0:00:35.9]} 42... Qf5 {[%clk 0:00:02.7]} 43.
Nd7+ {[%clk 0:00:36.1]} 43... Kc7 {[%clk 0:00:03.3]} 44. Nxf8 {[%clk 0:00:36.4]}
44... Qxh3 {[%clk 0:00:03.1]} 45. Rg7+ {[%clk 0:00:33.7]} 45... Kd6 {[%clk
0:00:03.6]} 46. Rxb7 {[%clk 0:00:32.6]} 46... Qf1+ {[%clk 0:00:03.5]} 47. Ka2
{[%clk 0:00:33]} 47... Qxf8 {[%clk 0:00:04]} 48. Rxa7 {[%clk 0:00:31.5]} 48...
Qg8+ {[%clk 0:00:04.3]} 49. b3 {[%clk 0:00:31.4]} 49... Qg6 {[%clk 0:00:04.1]}
50. a4 {[%clk 0:00:29.7]} 50... Qxc2+ {[%clk 0:00:04.4]} 51. Ka3 {[%clk
0:00:30.6]} 51... Qc3 {[%clk 0:00:05]} 52. a5 {[%clk 0:00:28.5]} 52... Nc2+
{[%clk 0:00:05.7]} 53. Ka4 {[%clk 0:00:29.4]} 53... Qb4# {[%clk 0:00:06]} 0-1

[Event "Late-Titled-Tuesday-Blitz-January-16-2024"]
[Site "Chess.com"]
[Date "2024.01.16"]
[Round "4"]
[White "RuleOfTwo"]
[Black "FrenchHarvey"]
[Result "0-1"]
[WhiteElo "2573"]
[BlackElo "2800"]
[TimeControl "180+1"]
[EndTime "14:37:59 PST"]
[Termination "FrenchHarvey won by resignation"]

1. d4 {[%clk 0:03:00.9]} 1... d5 {[%clk 0:02:59.8]} 2. Nf3 {[%clk 0:02:59.9]}
2... Nf6 {[%clk 0:02:59.7]} 3. Bg5 {[%clk 0:02:59.8]} 3... Ne4 {[%clk
0:02:55.9]} 4. Bf4 {[%clk 0:03:00.1]} 4... Bf5 {[%clk 0:02:52.6]} 5. e3 {[%clk
0:03:00.3]} 5... e6 {[%clk 0:02:52.7]} 6. Bd3 {[%clk 0:02:59.4]} 6... Nd7 {[%clk
0:02:50.7]} 7. O-O {[%clk 0:02:59.3]} 7... Be7 {[%clk 0:02:49.6]} 8. Nbd2 {[%clk
0:02:58]} 8... O-O {[%clk 0:02:47.8]} 9. Ne5 {[%clk 0:02:54]} 9... c5 {[%clk
0:02:37.6]} 10. Nxe4 {[%clk 0:02:44.7]} 10... dxe4 {[%clk 0:02:34.8]} 11. Be2
{[%clk 0:02:44.3]} 11... Nxe5 {[%clk 0:02:29.3]} 12. Bxe5 {[%clk 0:02:43.9]}
12... Qb6 {[%clk 0:02:25.6]} 13. dxc5 {[%clk 0:02:05.4]} 13... Bxc5 {[%clk
0:02:24.2]} 14. Qe1 {[%clk 0:02:03]} 14... Rfd8 {[%clk 0:02:19.6]} 15. Bc3
{[%clk 0:01:58.5]} 15... Rac8 {[%clk 0:02:18.6]} 16. Rd1 {[%clk 0:01:56.9]}
16... Rd5 {[%clk 0:02:10.2]} 17. Rxd5 {[%clk 0:01:45.8]} 17... exd5 {[%clk
0:02:10.2]} 18. Qd2 {[%clk 0:01:44]} 18... Be6 {[%clk 0:02:09.5]} 19. Rd1 {[%clk
0:01:43.2]} 19... h6 {[%clk 0:02:05.9]} 20. a3 {[%clk 0:01:40.1]} 20... a6
{[%clk 0:02:03]} 21. h3 {[%clk 0:01:33.6]} 21... Qc6 {[%clk 0:02:03.1]} 22. Bg4
{[%clk 0:01:33]} 22... f5 {[%clk 0:01:52.1]} 23. Bh5 {[%clk 0:01:27]} 23... Bxa3
{[%clk 0:01:34.1]} 24. Qd4 {[%clk 0:01:27.3]} 24... Bf8 {[%clk 0:01:32.8]} 25.
Qe5 {[%clk 0:01:23.1]} 25... Qd6 {[%clk 0:01:30]} 26. Qd4 {[%clk 0:01:20.4]}
26... Rc4 {[%clk 0:01:27.4]} 27. Qa7 {[%clk 0:01:15.2]} 27... Qc7 {[%clk
0:01:23.8]} 28. Be2 {[%clk 0:01:08.2]} 28... Rc6 {[%clk 0:01:18.2]} 29. Qd4
{[%clk 0:01:07.7]} 29... b5 {[%clk 0:01:17.4]} 30. Ra1 {[%clk 0:00:55]} 30...
Bf7 {[%clk 0:01:15.7]} 31. g4 {[%clk 0:00:51.1]} 31... Rg6 {[%clk 0:01:15.2]}
32. Kh1 {[%clk 0:00:46.8]} 32... fxg4 {[%clk 0:01:15]} 33. Bxg4 {[%clk
0:00:47.1]} 33... Rf6 {[%clk 0:01:05.5]} 34. Qd2 {[%clk 0:00:35.6]} 34... Rc6
{[%clk 0:00:59.8]} 35. Rg1 {[%clk 0:00:22.2]} 35... b4 {[%clk 0:00:58.3]} 36.
Bxb4 {[%clk 0:00:22.7]} 36... Rxc2 {[%clk 0:00:55.2]} 37. Qe1 {[%clk 0:00:23.4]}
37... Bxb4 {[%clk 0:00:48.9]} 38. Qxb4 {[%clk 0:00:23.4]} 38... Rxf2 {[%clk
0:00:49.3]} 39. Rg2 {[%clk 0:00:23.8]} 39... Qc1+ {[%clk 0:00:46.7]} 40. Kh2
{[%clk 0:00:21.5]} 40... Qxe3 {[%clk 0:00:44.8]} 41. Qb8+ {[%clk 0:00:17.6]}
41... Kh7 {[%clk 0:00:45.1]} 42. Qe5 {[%clk 0:00:10.1]} 42... Qf4+ {[%clk
0:00:45]} 43. Qxf4 {[%clk 0:00:10]} 43... Rxf4 {[%clk 0:00:45.9]} 44. Kg3 {[%clk
0:00:10.3]} 44... Rf6 {[%clk 0:00:45.3]} 45. h4 {[%clk 0:00:08.6]} 45... d4
{[%clk 0:00:44.4]} 46. h5 {[%clk 0:00:08.2]} 46... d3 {[%clk 0:00:43.5]} 47. Rd2
{[%clk 0:00:07.6]} 47... Be6 {[%clk 0:00:41.9]} 48. Bd1 {[%clk 0:00:05]} 48...
Bf5 {[%clk 0:00:41.6]} 49. Kf4 {[%clk 0:00:04.8]} 49... g6 {[%clk 0:00:38.5]}
50. hxg6+ {[%clk 0:00:04]} 50... Bxg6+ {[%clk 0:00:38.7]} 51. Ke5 {[%clk
0:00:04.9]} 51... Rf8 {[%clk 0:00:38.1]} 52. Bb3 {[%clk 0:00:03.5]} 52... e3
{[%clk 0:00:37.9]} 53. Rg2 {[%clk 0:00:03.6]} 53... e2 {[%clk 0:00:37.2]} 0-1